fUSD/lending_fUSD_20251120
["ID","MTS","AMOUNT","RATE_DAILY","PERIOD"]
[394512235,1763652265813,-151.0,0.00016916,2]
[394512236,1763652265838,-151.0,0.00016916,2]
[394512237,1763652265863,-229.89398899,0.00016916,2]
[394512238,1763652265888,-638.75,0.00016925,2]
[394512239,1763652265913,-550.0,0.00016925,2]
[394512240,1763652266162,-500.0,0.00016926,2]
[394512241,1763652266189,-500.0,0.00016926,2]
[394512242,1763652266213,-172.14262433,0.00016926,2]
[394512243,1763652266239,-500.0,0.00016926,2]
[394512244,1763652266262,-500.0,0.00016926,2]
[394512245,1763652266291,-500.0,0.00016926,2]
[394512246,1763652266314,-500.0,0.00016926,2]
[394512247,1763652266341,-500.0,0.00016926,2]
[394512248,1763652266368,-500.0,0.00016926,2]
[394512249,1763652266394,-517.98322458,0.00016926,2]
[394512250,1763652266420,-500.0,0.00016926,2]
[394512251,1763652266446,-500.0,0.00016926,2]
[394512252,1763652266472,-173.0265235,0.00016926,2]
[394512253,1763652266494,-277.17743267,0.00016926,2]
[394512254,1763652266517,-500.0,0.00016926,2]
[394512255,1763652266542,-500.0,0.00016926,2]
[394512256,1763652266565,-501.5217109,0.00016926,2]
[394512257,1763652266588,-500.0,0.00016926,2]
[394512258,1763652266614,-317.17609627,0.00016926,2]
[394512259,1763652266641,-500.0,0.00016926,2]
[394512260,1763652266663,-500.0,0.00016926,2]
[394512261,1763652266687,-500.0,0.00016926,2]
[394512262,1763652266712,-500.0,0.00016926,2]
[394512263,1763652266735,-402.53559378,0.00016926,2]
[394512264,1763652266758,-500.0,0.00016926,2]
[394512265,1763652266786,-500.0,0.00016926,2]
[394512266,1763652266810,-500.0,0.00016926,2]
[394512267,1763652266834,-260.30625245,0.00016926,2]
[394512268,1763652266876,-382.75977775,0.00016926,2]
[394512269,1763652266909,-500.0,0.00016926,2]
[394512270,1763652266934,-500.0,0.00016926,2]
[394512271,1763652266963,-500.0,0.00016926,2]
[394512272,1763652266991,-500.0,0.00016926,2]
[394512273,1763652267016,-164.09535237,0.00016926,2]
[394512274,1763652267045,-500.0,0.00016926,2]
[394512275,1763652267072,-264.83884823,0.00016926,2]
[394512276,1763652267099,-486.34704039,0.00016926,2]
[394512307,1763652542495,2000.0,0.000215,120]
[394512317,1763652612828,-1329.79346621,0.00016354,2]
[394512318,1763652612851,-999.0,0.00016354,3]
[394512319,1763652612875,-2572.22,0.00016368,2]
[394512320,1763652612903,-379.0,0.00016437,2]
[394512321,1763652612926,-3259.26,0.00016438,2]
[394512322,1763652612949,-162.349,0.00016508,2]
[394512323,1763652612972,-347.71826355,0.0001674,2]
[394512324,1763652612995,-635.15435128,0.00016741,2]
[394512325,1763652613017,-163.73,0.00016817,2]
[394512326,1763652613041,-194.02420287,0.00016826,2]
[394512327,1763652613066,-500.0,0.00016826,2]
[394512328,1763652613090,-320.49983703,0.00016826,2]
[394512329,1763652613115,-240.45503915,0.00016826,2]
[394512330,1763652613146,-500.0,0.00016826,2]
[394512331,1763652613175,-500.0,0.00016826,2]
[394512332,1763652613204,-500.0,0.00016826,2]
[394512333,1763652613232,-206.07420082,0.00016826,2]
[394512334,1763652613257,-168.66480273,0.00016826,2]
[394512335,1763652613280,-1000.0,0.00016827,2]
[394512336,1763652613303,-2500.0,0.00016827,2]
[394512337,1763652613334,-87259.05683636,0.00016827,2]
[394512349,1763652632397,-191.63,0.00016712,2]
[394512350,1763652632408,-356.56895225,0.00016827,2]
[394512351,1763652632421,-534.49801071,0.00016827,2]
[394512352,1763652632459,-119495.16716967,0.00016827,2]
[394512353,1763652633293,-0.96591513,0.00016827,2]
[394512356,1763652638819,-11021.43285541,0.00016827,2]
[394512357,1763652638980,-301.76501077,0.00016827,2]
[394512366,1763652639235,-115579.51447602,0.00016827,2]
[394512367,1763652639251,-15000.0,0.00016827,2]
[394512373,1763652640497,-699.70301262,0.00016827,2]
[394512374,1763652640568,-691.54586677,0.00016827,2]
[394512375,1763652640579,-409059.78189429,0.00016827,2]
[394512376,1763652640590,-2453.31771706,0.00016841,2]
[394512377,1763652640600,-236.07775638,0.00016841,2]
[394512378,1763652640609,-283.0,0.00016843,2]
[394512379,1763652640618,-151.0,0.00016897,2]
[394512380,1763652640628,-311398.36031292,0.000169,2]
[394512381,1763652640639,-466.46867508,0.000169,2]
[394512382,1763652640649,-347.71826348,0.00016906,2]
[394512383,1763652640659,-500.0,0.00016926,2]
[394512384,1763652640669,-500.0,0.00016926,2]
[394512385,1763652640678,-500.0,0.00016926,2]
[394512386,1763652640688,-500.0,0.00016926,2]
[394512387,1763652640698,-500.0,0.00016926,2]
[394512388,1763652640707,-500.0,0.00016926,2]
[394512389,1763652640719,-500.0,0.00016926,2]
[394512390,1763652640734,-1814.99,0.00016926,2]
[394512391,1763652640744,-185.144,0.00016926,2]
[394512392,1763652640754,-6535.35883216,0.00016926,2]
[394512393,1763652640765,-359.65236462,0.00016926,2]
[394512394,1763652640776,-500.0,0.00016926,2]
[394512396,1763652640786,-500.0,0.00016926,2]
[394512398,1763652640796,-500.0,0.00016926,2]
[394512399,1763652640808,-500.0,0.00016926,2]
[394512400,1763652640818,-500.0,0.00016926,2]
[394512401,1763652640828,-633.98608162,0.00016926,2]
[394512402,1763652640843,-466.46867507,0.00016944,2]
[394512403,1763652640853,-2453.31771698,0.00016964,2]
[394512405,1763652640864,-500.0,0.00016973,2]
[394512406,1763652640874,-440.38709243,0.00016973,2]
[394512407,1763652640883,-500.0,0.00016973,2]
[394512408,1763652640893,-166.14719998,0.00016973,2]
[394512409,1763652640902,-501.23436494,0.00016973,2]
[394512410,1763652640920,-500.0,0.00016973,2]
[394512411,1763652640930,-501.25798024,0.00016973,2]
[394512412,1763652640939,-481.70785925,0.00016973,2]
[394512413,1763652640949,-500.0,0.00016973,2]
[394512414,1763652640960,-819.06272098,0.00016983,2]
[394512415,1763652640970,-466.46867507,0.00016987,2]
[394512416,1763652640980,-819.06272098,0.0001699,2]
[394512418,1763652640990,-819.06272098,0.0001699,2]
[394512419,1763652641000,-286644.83,0.00016993,2]
[394512420,1763652641012,-151.0,0.00016997,2]
[394512421,1763652641021,-1740691.39827104,0.00017,2]
[394512422,1763652641038,-4525.0,0.00017,2]
[394512423,1763652641051,-2200.00009843,0.00017,2]
[394512424,1763652641079,-4978.9158966,0.00017,2]
[394512426,1763652644567,-315.5774945,0.00016897,2]
[394512427,1763652644576,-1945.9725055,0.00017,2]
[394512428,1763652644606,-1002213.76204469,0.00017,2]
[394512429,1763652644620,-374768.5765417,0.00017,2]
[394512430,1763652646487,-2913.11972553,0.00017,2]
[394512431,1763652646650,-1412.60557994,0.00017,2]
[394512432,1763652646914,-362.544,0.00017,2]
[394512433,1763652646926,-4409.88582088,0.00017,2]
[394512441,1763652833041,436.7928,0.00016,2]
[394512442,1763652833074,1029.49306068,0.00016,2]
[394512443,1763652900440,446.21,0.00016108,2]
[394512444,1763652964811,2751.0,0.00016143,2]
[394512445,1763653024818,-427.87071266,0.00016199,2]
[394512446,1763653026535,-154.6410347,0.00016199,2]
[394512447,1763653029008,-256.83163083,0.00016199,2]
[394512448,1763653031861,-285.25975086,0.00016199,2]
[394512449,1763653033991,-167.59957549,0.00016199,2]
[394512450,1763653036663,513.86,0.00016163,2]
[394512451,1763653086033,709.690957,0.00016117,2]
[394512452,1763653090987,572.82,0.00013699,2]
[394512454,1763653187279,222.87838378,0.00016153,2]
[394512455,1763653205081,200.0,0.0001617,2]
[394512456,1763653287916,4583.55065922,0.00016103,2]
[394512457,1763653287970,3806.17934078,0.00016103,2]
[394512458,1763653344118,252.869592,0.00016117,2]
[394512460,1763653437646,150.0,0.00016026,2]
[394512461,1763653440411,552.04,0.00016026,2]
[394512465,1763653487371,902.08,0.00016103,2]
[394512467,1763653514635,222.87838376,0.00016099,2]
[394512468,1763653660042,175.84,0.00015867,2]
[394512469,1763653829852,222.87838376,0.00016099,2]
[394512476,1763653831600,-300.0,0.00016198,2]
[394512477,1763653831611,-1200.0,0.00016198,2]
[394512478,1763653831622,-300.0,0.00016198,2]
[394512479,1763653831633,-15993.39729546,0.00016199,2]
[394512480,1763653831643,-150.0,0.000162,2]
[394512481,1763653831654,-150.0,0.000162,2]
[394512482,1763653831664,-150.0,0.000162,2]
[394512483,1763653831674,-150.0,0.000162,2]
[394512484,1763653831684,-150.0,0.000162,2]
[394512485,1763653831694,-150.0,0.000162,2]
[394512486,1763653831705,-257.23822357,0.000162,2]
[394512487,1763653831715,-150.0,0.000162,2]
[394512488,1763653831725,-168.66866561,0.000162,2]
[394512489,1763653831735,-150.0,0.000162,2]
[394512490,1763653831746,-150.0,0.000162,2]
[394512491,1763653831756,-150.0,0.000162,2]
[394512492,1763653831766,-150.0,0.000162,2]
[394512493,1763653831776,-150.0,0.000162,2]
[394512494,1763653831785,-690.99,0.000162,2]
[394512495,1763653831796,-2020.48,0.00016253,2]
[394512496,1763653831806,-150.0,0.00016425,2]
[394512497,1763653831816,-150.0,0.00016425,2]
[394512499,1763653831826,-150.0,0.00016457,2]
[394512501,1763653831835,-690.99,0.00016474,2]
[394512503,1763653831845,-150.0,0.000165,2]
[394512505,1763653831855,-150.0,0.000165,2]
[394512507,1763653831864,-150.0,0.000165,2]
[394512509,1763653831874,-260.78869761,0.00016527,2]
[394512510,1763653831884,-212.46998067,0.00016527,2]
[394512511,1763653831894,-574.34988592,0.00016626,2]
[394512512,1763653831904,-189.56380009,0.00016626,2]
[394512513,1763653831914,-300.0,0.00016626,2]
[394512516,1763653831924,-184.5098755,0.00016627,2]
[394512518,1763653831936,-497.05484294,0.00016627,2]
[394512520,1763653831952,-562.249999,0.00016627,2]
[394512523,1763653831968,-13592.6154,0.00016627,2]
[394512525,1763653831980,-295.88708944,0.00016627,2]
[394512528,1763653831992,-4649.492,0.00016627,2]
[394512529,1763653832005,-5268.23399029,0.00016627,2]
[394512530,1763653832025,-572.0678,0.00016627,2]
[394512531,1763653832039,-724.37785151,0.00016627,2]
[394512536,1763653839213,-1814.58192,0.00016527,2]
[394512537,1763653839301,-199.95039019,0.00016527,2]
[394512538,1763653839313,-509.52760981,0.00016627,2]
[394512550,1763653839711,-453.42948233,0.00016627,2]
[394512551,1763653839723,-327.36074555,0.00016627,2]
[394512559,1763653843637,-603.32475265,0.00016627,2]
[394512560,1763653843650,-410.30174383,0.00016627,2]
[394512561,1763653843665,-1757.59910477,0.00016627,2]
[394512564,1763653844888,-13618.5828,0.00016627,2]
[394512567,1763653845687,-2200.23910581,0.00016627,2]
[394512570,1763653845941,-1900.10729965,0.00016627,2]
[394512572,1763653845996,-1104.59051863,0.00016627,2]
[394512573,1763653846057,-5882.93393453,0.00016627,2]
[394512577,1763653849306,250.0,0.00016043,2]
[394512578,1763653869220,159.16,0.00012796,2]
[394512579,1763653902315,152.3,0.00015816,2]
[394512582,1763653932946,296.65,0.00015996,2]
[394512583,1763653960284,166.66,0.00015196,2]
[394512584,1763653960513,166.66,0.00015516,2]
[394512585,1763653960734,166.66,0.00015836,2]
[394512586,1763653960960,166.66,0.00016155,2]
[394512587,1763654039305,1500.0,0.00015996,2]
[394512588,1763654040148,690.4942997,0.00015801,2]
[394512589,1763654040212,1161.9257003,0.00015801,2]
[394512590,1763654042051,366.38378346,0.00016155,2]
[394512591,1763654071845,150.0,0.00015996,2]
[394512592,1763654125233,386.02,0.00015761,2]
[394512594,1763654239237,2290.94,0.00016172,2]
[394512595,1763654299135,2377.82,0.00015919,2]
[394512598,1763654345005,3266.92051624,0.00015826,2]
[394512599,1763654345060,6898.71948376,0.00015826,2]
[394512604,1763654423717,398.11212609,0.00015826,2]
[394512605,1763654423928,251.99128105,0.00015826,2]
[394512607,1763654431149,526.81127746,0.00015826,2]
[394512635,1763654490856,-222.41932101,0.00016178,2]
[394512636,1763654613455,3213.03,0.00015644,2]
[394512637,1763654667057,1261.18,0.00015605,2]
[394512638,1763654717356,-150.0,0.000162,2]
[394512639,1763654717384,-150.0,0.000162,2]
[394512640,1763654717410,-4.84144416,0.000162,2]
[394512641,1763654719518,-145.15855584,0.000162,2]
[394512642,1763654719545,-150.0,0.000162,2]
[394512643,1763654719570,-13.20653229,0.000162,2]
[394512644,1763654722007,-136.79346771,0.000162,2]
[394512645,1763654722030,-113.20653229,0.000162,2]
[394512648,1763654812048,216.30167,0.00016,2]
[394512651,1763654917232,-373.0,0.00016199,2]
[394512652,1763654917255,-250.0,0.000162,2]
[394512653,1763654917279,-36.79346771,0.000162,2]
[394512654,1763654917312,-150.0,0.000162,2]
[394512655,1763654917335,-150.0,0.000162,2]
[394512656,1763654917358,-168.66866561,0.000162,2]
[394512657,1763654917382,-257.23822357,0.000162,2]
[394512658,1763654917405,-75.29964311,0.000162,2]
[394512659,1763654977726,1000.0,0.00015742,2]
[394512661,1763654983893,877.15026966,0.00016165,2]
[394512664,1763655009421,-74.70035689,0.000162,2]
[394512665,1763655009448,-150.0,0.000162,2]
[394512666,1763655009474,-150.0,0.000162,2]
[394512667,1763655009502,-150.0,0.000162,2]
[394512668,1763655009533,-250.0,0.000162,2]
[394512670,1763655009559,-276.01381595,0.000162,2]
[394512671,1763655009592,-522.2985645,0.0001627,2]
[394512672,1763655009619,-7161.43152348,0.00016273,2]
[394512673,1763655009644,-300.0,0.00016289,2]
[394512674,1763655009670,-1200.0,0.00016289,2]
[394512675,1763655009693,-238.24543223,0.0001629,2]
[394512676,1763655009717,-260.78869761,0.0001629,2]
[394512677,1763655009741,-3772.57657152,0.0001629,2]
[394512678,1763655009769,-222.41932101,0.00016356,2]
[394512679,1763655009796,-402.04492015,0.00016369,2]
[394512680,1763655009824,-172.30496578,0.00016369,2]
[394512681,1763655009863,-189.56380009,0.00016369,2]
[394512682,1763655009887,-552.16510927,0.00016369,2]
[394512683,1763655009913,-267.97665405,0.00016369,2]
[394512684,1763655009942,-500.0,0.00016369,2]
[394512685,1763655009973,-500.0,0.00016369,2]
[394512686,1763655010002,-500.0,0.00016369,2]
[394512687,1763655010030,-500.0,0.00016369,2]
[394512689,1763655010058,-500.0,0.00016369,2]
[394512690,1763655010092,-500.0,0.00016369,2]
[394512691,1763655010121,-500.0,0.00016369,2]
[394512692,1763655010150,-500.0,0.00016369,2]
[394512693,1763655010179,-500.0,0.00016369,2]
[394512694,1763655010209,-500.0,0.00016369,2]
[394512695,1763655010238,-500.0,0.00016369,2]
[394512696,1763655010268,-500.0,0.00016369,2]
[394512697,1763655010296,-500.0,0.00016369,2]
[394512698,1763655010327,-500.0,0.00016369,2]
[394512699,1763655010362,-500.0,0.00016369,2]
[394512700,1763655010391,-500.0,0.00016369,2]
[394512701,1763655010422,-500.0,0.00016369,2]
[394512702,1763655010451,-500.0,0.00016369,2]
[394512703,1763655010483,-500.0,0.00016369,2]
[394512704,1763655010516,-500.0,0.00016369,2]
[394512705,1763655010545,-500.0,0.00016369,2]
[394512706,1763655010578,-500.0,0.00016369,2]
[394512707,1763655010615,-500.0,0.00016369,2]
[394512708,1763655010646,-500.0,0.00016369,2]
[394512709,1763655010674,-500.0,0.00016369,2]
[394512710,1763655010701,-466.78626657,0.00016369,2]
[394512711,1763655010729,-500.0,0.00016369,2]
[394512712,1763655010757,-500.0,0.00016369,2]
[394512713,1763655010786,-500.0,0.00016369,2]
[394512714,1763655010813,-500.0,0.00016369,2]
[394512715,1763655010846,-500.0,0.00016369,2]
[394512716,1763655010875,-500.0,0.00016369,2]
[394512717,1763655010904,-500.0,0.00016369,2]
[394512718,1763655010933,-500.0,0.00016369,2]
[394512719,1763655010959,-500.0,0.00016369,2]
[394512720,1763655010987,-500.0,0.00016369,2]
[394512721,1763655011016,-500.0,0.00016369,2]
[394512722,1763655011045,-500.0,0.00016369,2]
[394512723,1763655011073,-500.0,0.00016369,2]
[394512724,1763655011102,-500.0,0.00016369,2]
[394512725,1763655011129,-500.0,0.00016369,2]
[394512726,1763655011158,-500.0,0.00016369,2]
[394512727,1763655011187,-500.0,0.00016369,2]
[394512728,1763655011216,-500.0,0.00016369,2]
[394512729,1763655011246,-500.0,0.00016369,2]
[394512730,1763655011275,-500.0,0.00016369,2]
[394512731,1763655011307,-500.0,0.00016369,2]
[394512732,1763655011344,-500.0,0.00016369,2]
[394512733,1763655011373,-500.0,0.00016369,2]
[394512734,1763655011404,-500.0,0.00016369,2]
[394512735,1763655011433,-500.0,0.00016369,2]
[394512736,1763655011463,-500.0,0.00016369,2]
[394512737,1763655011495,-500.0,0.00016369,2]
[394512738,1763655011528,-500.0,0.00016369,2]
[394512739,1763655011557,-500.0,0.00016369,2]
[394512740,1763655011590,-500.0,0.00016369,2]
[394512741,1763655011619,-500.0,0.00016369,2]
[394512742,1763655011650,-600.0,0.00016369,2]
[394512743,1763655011681,-500.0,0.00016369,2]
[394512744,1763655011714,-500.0,0.00016369,2]
[394512745,1763655011745,-500.0,0.00016369,2]
[394512746,1763655011778,-500.0,0.00016369,2]
[394512747,1763655011811,-500.0,0.00016369,2]
[394512748,1763655011994,-500.0,0.00016369,2]
[394512749,1763655012026,-500.0,0.00016369,2]
[394512750,1763655012056,-500.0,0.00016369,2]
[394512751,1763655012089,-500.0,0.00016369,2]
[394512752,1763655012117,-86120.6840009,0.0001637,2]
[394512756,1763655027744,-500.0,0.00016369,2]
[394512757,1763655027775,-8500.0,0.0001637,2]
[394512766,1763655031858,-908.31160856,0.0001637,2]
[394512769,1763655031872,-20066.79518358,0.0001637,2]
[394512774,1763655032009,-970.06797179,0.0001637,2]
[394512775,1763655032091,-0.18609389,0.0001637,2]
[394512776,1763655032109,-1437.436,0.0001637,2]
[394512779,1763655032121,-9099.75969287,0.0001637,2]
[394512781,1763655032133,-1307.1832159,0.0001637,2]
[394512783,1763655032145,-535.362,0.0001637,2]
[394512785,1763655032158,-1059.77703254,0.0001637,2]
[394512787,1763655032169,-3371.88881998,0.0001637,2]
[394512789,1763655032181,-91208.82186745,0.0001637,2]
[394512818,1763655038409,-1370.716068,0.0001637,2]
[394512819,1763655038422,-855.5,0.0001637,2]
[394512820,1763655038435,-1835.0906173,0.0001637,2]
[394512821,1763655038447,-2290.94,0.0001637,2]
[394512822,1763655038459,-13500.98747501,0.0001637,2]
[394512823,1763655038512,-8901.2,0.0001637,2]
[394512824,1763655038744,-369.081,0.0001627,2]
[394512825,1763655038754,-84236.60345586,0.0001637,2]
[394512826,1763655038767,-3126.6,0.0001637,2]
[394512832,1763655039807,-180000.0,0.0001637,2]
[394512833,1763655039860,-143761.36141778,0.0001637,2]
[394512835,1763655039872,-44818.73396843,0.0001637,2]
[394512836,1763655039883,-50715.99351016,0.0001637,2]
[394512837,1763655039893,-1410.56250939,0.00016373,2]
[394512838,1763655039903,-150.0,0.00016425,2]
[394512839,1763655039912,-300.0,0.00016444,2]
[394512840,1763655039922,-7161.43152342,0.00016454,2]
[394512841,1763655039950,-150.0,0.00016457,2]
[394512842,1763655039960,-300.0,0.00016458,2]
[394512843,1763655039971,-1000.0,0.00016458,2]
[394512844,1763655039981,-173.38945,0.0001646,2]
[394512845,1763655039991,-300.0,0.00016461,2]
[394512846,1763655040001,-300.0,0.00016463,2]
[394512847,1763655040011,-3772.5765715,0.00016469,2]
[394512848,1763655040023,-68223.29213001,0.0001647,2]
[394512849,1763655040034,-500.0,0.00016473,2]
[394512850,1763655040045,-408.37583204,0.00016473,2]
[394512851,1763655040055,-166.66,0.00016475,2]
[394512852,1763655040065,-150.0,0.000165,2]
[394512853,1763655040075,-150.0,0.000165,2]
[394512854,1763655040086,-260.78869761,0.0001652,2]
[394512855,1763655040098,-1000.0,0.00016527,2]
[394512856,1763655040110,-7223.8395,0.00016527,2]
[394512857,1763655040123,-1632.1999,0.00016527,2]
[394512858,1763655040134,-300.0,0.00016539,2]
[394512859,1763655040145,-300.0,0.00016553,2]
[394512860,1763655040155,-34198.9461186,0.00016589,2]
[394512861,1763655040166,-689.2130458,0.00016589,2]
[394512862,1763655040176,-300.0,0.00016597,2]
[394512863,1763655040186,-300.0,0.000166,2]
[394512864,1763655040197,-37570.3065273,0.00016602,2]
[394512865,1763655040208,-300.0,0.00016608,2]
[394512866,1763655040218,-300.0,0.00016619,2]
[394512867,1763655040228,-500.0,0.00016626,2]
[394512868,1763655040237,-500.0,0.00016626,2]
[394512869,1763655040248,-500.0,0.00016626,2]
[394512870,1763655040258,-500.0,0.00016626,2]
[394512871,1763655040268,-372.59803635,0.00016626,2]
[394512872,1763655040278,-362.02646144,0.00016626,2]
[394512873,1763655040293,-173.38945,0.00016627,2]
[394512874,1763655040304,-173.38945,0.00016627,2]
[394512875,1763655040314,-173.38945,0.00016627,2]
[394512876,1763655040325,-173.38945,0.00016627,2]
[394512877,1763655040335,-173.38945,0.00016627,2]
[394512878,1763655040346,-200.0,0.00016627,2]
[394512879,1763655040360,-300.0,0.00016632,2]
[394512880,1763655040371,-7161.43152342,0.00016635,2]
[394512881,1763655040382,-1410.56250939,0.00016637,2]
[394512882,1763655040392,-300.0,0.00016645,2]
[394512883,1763655040403,-300.0,0.00016646,2]
[394512884,1763655040413,-3772.5765715,0.00016648,2]
[394512885,1763655040423,-150.0,0.0001665,2]
[394512886,1763655040433,-150.0,0.0001665,2]
[394512887,1763655040444,-150.0,0.0001665,2]
[394512888,1763655040454,-300.0,0.00016651,2]
[394512889,1763655040464,-300.0,0.00016665,2]
[394512890,1763655040475,-1737.0,0.00016684,2]
[394512891,1763655040486,-300.0,0.00016694,2]
[394512892,1763655040496,-150.0,0.00016714,2]
[394512893,1763655040507,-1737.0,0.00016718,2]
[394512894,1763655040517,-1000.0,0.00016719,2]
[394512895,1763655040531,-300.0,0.00016722,2]
[394512896,1763655040542,-1000.0,0.00016724,2]
[394512897,1763655040552,-300.0,0.00016736,2]
[394512898,1763655040562,-300.0,0.00016739,2]
[394512899,1763655040571,-300.0,0.00016745,2]
[394512900,1763655040582,-260.78869761,0.0001675,2]
[394512901,1763655040592,-300.0,0.00016751,2]
[394512902,1763655040605,-300.0,0.00016759,2]
[394512903,1763655040615,-300.0,0.0001676,2]
[394512904,1763655040625,-300.0,0.0001676,2]
[394512905,1763655040635,-300.0,0.00016768,2]
[394512906,1763655040645,-300.0,0.00016781,2]
[394512907,1763655040656,-1737.0,0.00016781,2]
[394512908,1763655040671,-300.0,0.00016783,2]
[394512909,1763655040680,-396.68559199,0.00016795,2]
[394512910,1763655040691,-166.66,0.00016795,2]
[394512911,1763655040701,-150.0,0.000168,2]
[394512912,1763655040710,-150.0,0.000168,2]
[394512913,1763655040720,-150.0,0.000168,2]
[394512914,1763655040730,-150.0,0.00016802,2]
[394512915,1763655040739,-300.0,0.00016809,2]
[394512917,1763655040749,-300.0,0.00016812,2]
[394512919,1763655040760,-7161.43152342,0.00016815,2]
[394512921,1763655040770,-300.0,0.00016823,2]
[394512922,1763655040780,-3772.5765715,0.00016827,2]
[394512923,1763655040790,-488.66415841,0.00016827,2]
[394512924,1763655040801,-300.0,0.00016832,2]
[394512925,1763655040811,-300.0,0.00016836,2]
[394512926,1763655040821,-300.0,0.00016837,2]
[394512927,1763655040831,-300.0,0.00016838,2]
[394512928,1763655040841,-300.0,0.00016841,2]
[394512929,1763655040855,-300.0,0.00016841,2]
[394512930,1763655040869,-300.0,0.00016851,2]
[394512931,1763655040879,-300.0,0.00016855,2]
[394512932,1763655040892,-300.0,0.00016856,2]
[394512933,1763655040902,-300.0,0.00016857,2]
[394512934,1763655040912,-300.0,0.00016857,2]
[394512935,1763655040921,-150.0,0.00016875,2]
[394512936,1763655040931,-300.0,0.00016882,2]
[394512937,1763655040941,-300.0,0.00016885,2]
[394512938,1763655040951,-300.0,0.00016888,2]
[394512939,1763655040961,-369.41358352,0.000169,2]
[394512940,1763655040971,-167.90102495,0.000169,2]
[394512941,1763655040981,-300.0,0.000169,2]
[394512942,1763655040992,-1410.56250939,0.000169,2]
[394512943,1763655041002,-300.0,0.00016907,2]
[394512944,1763655041011,-300.0,0.0001691,2]
[394512945,1763655041021,-20708.40512942,0.00016917,2]
[394512946,1763655041031,-300.0,0.00016917,2]
[394512947,1763655041041,-300.0,0.00016917,2]
[394512948,1763655041050,-300.0,0.0001692,2]
[394512949,1763655041064,-300.0,0.00016921,2]
[394512950,1763655041073,-1000.0,0.00016924,2]
[394512951,1763655041084,-300.0,0.00016926,2]
[394512952,1763655041094,-300.0,0.00016926,2]
[394512953,1763655041105,-300.0,0.0001693,2]
[394512954,1763655041115,-300.0,0.0001693,2]
[394512955,1763655041125,-300.0,0.00016933,2]
[394512956,1763655041134,-300.0,0.00016944,2]
[394512957,1763655041145,-152.3,0.00016945,2]
[394512958,1763655041154,-300.0,0.0001696,2]
[394512959,1763655041164,-300.0,0.00016966,2]
[394512960,1763655041174,-300.0,0.00016967,2]
[394512961,1763655041183,-150.0,0.00016971,2]
[394512962,1763655041194,-1737.0,0.00016972,2]
[394512963,1763655041204,-228.77234087,0.00016973,2]
[394512964,1763655041214,-502.10718948,0.00016973,2]
[394512965,1763655041224,-163.17014768,0.00016973,2]
[394512966,1763655041234,-309.68767794,0.00016973,2]
[394512967,1763655041243,-500.0,0.00016973,2]
[394512968,1763655041257,-161.97608416,0.00016973,2]
[394512969,1763655041266,-503.55891604,0.00016973,2]
[394512970,1763655041275,-500.0,0.00016973,2]
[394512971,1763655041285,-526.79019395,0.00016973,2]
[394512972,1763655041295,-367.43650363,0.00016973,2]
[394512973,1763655041305,-637.70452293,0.00016973,2]
[394512974,1763655041315,-500.0,0.00016973,2]
[394512975,1763655041326,-500.0,0.00016973,2]
[394512976,1763655041336,-172.04833378,0.00016973,2]
[394512977,1763655041346,-500.0,0.00016973,2]